fUSD/lending_fUSD_20260115
["ID","MTS","AMOUNT","RATE_DAILY","PERIOD"]
[402074001,1768507877218,-500.0,0.00036164,10]
[402074002,1768507877228,-500.0,0.00036164,10]
[402074003,1768507877239,-500.0,0.00036164,10]
[402074004,1768507877248,-444.08608284,0.00036164,10]
[402074005,1768507877258,-1154.16,0.00036164,10]
[402074006,1768507877267,-500.0,0.00036164,10]
[402074007,1768507877277,-525.01,0.00036164,10]
[402074008,1768507877287,-598.53,0.00036164,10]
[402074009,1768507877297,-500.0,0.00036164,10]
[402074010,1768507877306,-500.0,0.00036164,10]
[402074011,1768507877316,-729.72,0.00036164,10]
[402074012,1768507877326,-500.0,0.00036164,10]
[402074013,1768507877336,-500.0,0.00036164,10]
[402074014,1768507877345,-500.0,0.00036164,10]
[402074015,1768507877355,-500.0,0.00036164,10]
[402074016,1768507877365,-500.0,0.00036164,10]
[402074017,1768507877374,-500.0,0.00036164,10]
[402074018,1768507877384,-682.66,0.00036164,10]
[402074019,1768507877394,-797.6,0.00036164,10]
[402074020,1768507877404,-500.0,0.00036164,10]
[402074021,1768507877414,-500.0,0.00036164,10]
[402074022,1768507877428,-500.0,0.00036164,10]
[402074023,1768507877438,-500.0,0.00036164,10]
[402074024,1768507877449,-500.0,0.00036164,10]
[402074025,1768507877459,-742.49,0.00036164,10]
[402074026,1768507877469,-1354.09,0.00036164,10]
[402074027,1768507877479,-500.0,0.00036164,10]
[402074028,1768507877490,-986.03,0.00036164,10]
[402074029,1768507877500,-1000.0,0.00036164,120]
[402074030,1768507877510,-1000.0,0.00036164,120]
[402074031,1768507877521,-527.84,0.00036164,10]
[402074032,1768507877531,-500.0,0.00036164,10]
[402074033,1768507877541,-500.0,0.00036164,10]
[402074034,1768507877552,-500.0,0.00036164,10]
[402074035,1768507877562,-500.0,0.00036164,10]
[402074036,1768507877572,-500.0,0.00036164,10]
[402074037,1768507877582,-519.36538034,0.00036164,10]
[402074038,1768507877591,-744.48,0.00036164,10]
[402074039,1768507877601,-500.0,0.00036164,10]
[402074040,1768507877611,-725.03,0.00036164,10]
[402074041,1768507877621,-692.32,0.00036164,10]
[402074042,1768507877631,-500.0,0.00036164,10]
[402074043,1768507877641,-1121.97,0.00036164,10]
[402074044,1768507877651,-500.0,0.00036164,10]
[402074045,1768507877661,-509.81,0.00036164,10]
[402074046,1768507877671,-500.0,0.00036164,10]
[402074047,1768507877681,-530.84,0.00036164,10]
[402074048,1768507877691,-880.62,0.00036164,10]
[402074049,1768507877701,-567.76,0.00036164,10]
[402074050,1768507877712,-500.0,0.00036164,10]
[402074051,1768507877722,-500.0,0.00036164,10]
[402074052,1768507877732,-500.0,0.00036164,10]
[402074053,1768507877742,-500.0,0.00036164,10]
[402074054,1768507877752,-902.4,0.00036164,10]
[402074055,1768507877762,-500.0,0.00036164,10]
[402074056,1768507877773,-500.0,0.00036164,10]
[402074057,1768507877783,-673.07,0.00036164,10]
[402074058,1768507877793,-500.0,0.00036164,10]
[402074059,1768507877803,-500.0,0.00036164,10]
[402074060,1768507877813,-500.0,0.00036164,10]
[402074061,1768507877823,-500.0,0.00036164,10]
[402074062,1768507877833,-552.24,0.00036164,10]
[402074063,1768507877843,-1031.54,0.00036164,10]
[402074064,1768507877853,-500.0,0.00036164,10]
[402074065,1768507877863,-559.98,0.00036164,10]
[402074066,1768507877873,-1837.88,0.00036164,10]
[402074067,1768507877883,-500.0,0.00036164,10]
[402074068,1768507877893,-500.0,0.00036164,10]
[402074069,1768507877903,-500.0,0.00036164,10]
[402074070,1768507877913,-192.97689054,0.00036164,10]
[402074071,1768507877924,-1042.57,0.00036164,10]
[402074072,1768507877934,-823.62,0.00036164,10]
[402074073,1768507877944,-919.86,0.00036164,10]
[402074074,1768507877954,-500.0,0.00036164,10]
[402074075,1768507877969,-583.15,0.00036164,10]
[402074076,1768507877979,-500.0,0.00036164,10]
[402074077,1768507877990,-500.0,0.00036164,10]
[402074078,1768507878000,-1000.05,0.00036164,10]
[402074079,1768507878010,-557.19054417,0.00036164,10]
[402074080,1768507878021,-500.0,0.00036164,10]
[402074081,1768507878032,-500.0,0.00036164,10]
[402074082,1768507878044,-606.13,0.00036164,10]
[402074083,1768507878056,-500.0,0.00036164,10]
[402074084,1768507878436,-500.0,0.00036164,10]
[402074085,1768507878446,-500.0,0.00036164,10]
[402074086,1768507878457,-395.70894301,0.00036164,10]
[402074087,1768507878467,-999.79,0.00036164,10]
[402074088,1768507878476,-500.0,0.00036164,10]
[402074089,1768507878485,-1000.0,0.00036164,120]
[402074090,1768507878497,-1000.0,0.00036164,120]
[402074091,1768507878507,-1000.0,0.00036164,120]
[402074092,1768507878516,-1000.0,0.00036164,120]
[402074093,1768507878526,-500.0,0.00036164,10]
[402074094,1768507878535,-1344.13,0.00036164,10]
[402074095,1768507878544,-860.85,0.00036164,10]
[402074096,1768507878554,-341.09435576,0.00036164,10]
[402074097,1768507878563,-500.0,0.00036164,10]
[402074098,1768507878572,-500.0,0.00036164,10]
[402074099,1768507878581,-151.0,0.00036164,31]
[402074100,1768507878590,-500.0,0.00036164,10]
[402074101,1768507878600,-583.04,0.00036164,10]
[402074102,1768507878612,-151.0,0.00036164,31]
[402074103,1768507878622,-1328.93,0.00036164,10]
[402074104,1768507878632,-3404.74,0.00036164,10]
[402074105,1768507878643,-634.21,0.00036164,10]
[402074106,1768507878652,-500.0,0.00036164,10]
[402074107,1768507878662,-593.19,0.00036164,10]
[402074108,1768507878671,-790.35,0.00036164,10]
[402074109,1768507878681,-500.0,0.00036164,10]
[402074110,1768507878692,-500.0,0.00036164,10]
[402074111,1768507878702,-780.3,0.00036164,10]
[402074112,1768507878712,-762.91,0.00036164,10]
[402074113,1768507878722,-1264.21,0.00036164,10]
[402074114,1768507878731,-500.0,0.00036164,10]
[402074115,1768507878741,-500.0,0.00036164,10]
[402074116,1768507878751,-500.0,0.00036164,10]
[402074117,1768507878761,-1634.25,0.00036164,10]
[402074118,1768507878771,-597.14,0.00036164,10]
[402074119,1768507878782,-637.23,0.00036164,10]
[402074120,1768507878792,-772.88,0.00036164,10]
[402074121,1768507878802,-715.37,0.00036164,10]
[402074122,1768507878812,-1997.0,0.00036164,10]
[402074123,1768507878821,-500.0,0.00036164,10]
[402074124,1768507878831,-500.0,0.00036164,10]
[402074125,1768507878841,-500.0,0.00036164,10]
[402074126,1768507878851,-553.38,0.00036164,10]
[402074127,1768507878860,-500.0,0.00036164,10]
[402074128,1768507878870,-687.76,0.00036164,10]
[402074129,1768507878879,-500.0,0.00036164,10]
[402074130,1768507878889,-500.0,0.00036164,10]
[402074131,1768507878898,-500.0,0.00036164,10]
[402074132,1768507878908,-500.0,0.00036164,10]
[402074133,1768507878919,-1448.84,0.00036164,10]
[402074134,1768507878929,-500.0,0.00036164,10]
[402074135,1768507878939,-579.74,0.00036164,10]
[402074136,1768507878949,-1084.74,0.00036164,10]
[402074137,1768507878961,-500.0,0.00036164,10]
[402074138,1768507878971,-500.0,0.00036164,10]
[402074139,1768507878981,-500.0,0.00036164,10]
[402074140,1768507878991,-500.0,0.00036164,10]
[402074141,1768507879005,-401.4613761,0.00036164,10]
[402074142,1768507879016,-500.0,0.00036164,10]
[402074143,1768507879026,-500.0,0.00036164,10]
[402074144,1768507879036,-500.0,0.00036164,10]
[402074145,1768507879046,-640.7,0.00036164,10]
[402074146,1768507879056,-500.0,0.00036164,10]
[402074147,1768507879066,-637.73,0.00036164,10]
[402074148,1768507879075,-500.0,0.00036164,10]
[402074149,1768507879088,-500.0,0.00036164,10]
[402074150,1768507879097,-500.0,0.00036164,10]
[402074151,1768507879107,-500.0,0.00036164,10]
[402074152,1768507879117,-546.47,0.00036164,10]
[402074153,1768507879127,-1484.39,0.00036164,10]
[402074154,1768507879140,-1240.8,0.00036164,10]
[402074155,1768507879150,-500.0,0.00036164,10]
[402074156,1768507879161,-500.0,0.00036164,10]
[402074157,1768507879171,-1097.66,0.00036164,10]
[402074158,1768507879181,-973.31,0.00036164,10]
[402074159,1768507879190,-500.0,0.00036164,10]
[402074160,1768507879200,-500.0,0.00036164,10]
[402074161,1768507879212,-500.0,0.00036164,10]
[402074162,1768507879222,-603.77,0.00036164,10]
[402074163,1768507879231,-500.0,0.00036164,10]
[402074164,1768507879240,-821.16,0.00036164,10]
[402074165,1768507879249,-500.0,0.00036164,10]
[402074166,1768507879259,-633.67,0.00036164,10]
[402074167,1768507879269,-588.14,0.00036164,10]
[402074168,1768507879278,-526.35,0.00036164,10]
[402074169,1768507879287,-1049.9,0.00036164,10]
[402074170,1768507879297,-500.0,0.00036164,10]
[402074171,1768507879306,-1000.0,0.00036164,120]
[402074172,1768507879315,-1000.0,0.00036164,120]
[402074173,1768507879325,-549.69,0.00036164,10]
[402074174,1768507879334,-500.0,0.00036164,10]
[402074175,1768507879344,-500.0,0.00036164,10]
[402074176,1768507879354,-500.0,0.00036164,10]
[402074177,1768507879363,-560.64877167,0.00036164,10]
[402074178,1768507879372,-500.0,0.00036164,10]
[402074179,1768507879384,-500.0,0.00036164,10]
[402074180,1768507879393,-500.0,0.00036164,10]
[402074181,1768507879402,-500.0,0.00036164,10]
[402074182,1768507879412,-628.28,0.00036164,10]
[402074183,1768507879421,-500.0,0.00036164,10]
[402074184,1768507879430,-626.5,0.00036164,10]
[402074185,1768507879440,-1079.85,0.00036164,10]
[402074186,1768507879450,-837.86,0.00036164,10]
[402074187,1768507879460,-980.97,0.00036164,10]
[402074188,1768507879469,-1331.99,0.00036164,10]
[402074189,1768507879479,-500.0,0.00036164,10]
[402074190,1768507879489,-500.0,0.00036164,10]
[402074191,1768507879498,-1398.1,0.00036164,10]
[402074192,1768507879507,-500.0,0.00036164,10]
[402074193,1768507879516,-500.0,0.00036164,10]
[402074194,1768507879526,-500.0,0.00036164,10]
[402074195,1768507879535,-771.85,0.00036164,10]
[402074196,1768507879544,-639.98,0.00036164,10]
[402074197,1768507879554,-1480.32,0.00036164,10]
[402074198,1768507879563,-500.0,0.00036164,10]
[402074199,1768507879572,-500.0,0.00036164,10]
[402074200,1768507879582,-525.87,0.00036164,10]
[402074201,1768507879591,-1161.08,0.00036164,10]
[402074202,1768507879601,-838.05,0.00036164,10]
[402074203,1768507879610,-500.0,0.00036164,10]
[402074204,1768507879619,-500.0,0.00036164,120]
[402074205,1768507879629,-2994.73,0.00036164,10]
[402074206,1768507879638,-887.63,0.00036164,10]
[402074207,1768507879647,-548.92,0.00036164,10]
[402074208,1768507879656,-500.0,0.00036164,10]
[402074209,1768507879666,-1132.08,0.00036164,10]
[402074210,1768507879675,-655.51,0.00036164,10]
[402074211,1768507879684,-500.0,0.00036164,10]
[402074212,1768507879693,-1293.43,0.00036164,10]
[402074213,1768507879703,-502.53,0.00036164,10]
[402074214,1768507879712,-1239.54,0.00036164,10]
[402074215,1768507879722,-899.07,0.00036164,10]
[402074216,1768507879731,-500.0,0.00036164,10]
[402074217,1768507879740,-500.0,0.00036164,10]
[402074218,1768507879750,-500.0,0.00036164,10]
[402074219,1768507879759,-500.0,0.00036164,10]
[402074220,1768507879769,-500.0,0.00036164,10]
[402074221,1768507879780,-500.0,0.00036164,10]
[402074222,1768507879789,-1040.2,0.00036164,10]
[402074223,1768507879799,-500.0,0.00036164,10]
[402074224,1768507879809,-500.0,0.00036164,10]
[402074225,1768507879819,-500.0,0.00036164,10]
[402074226,1768507879829,-500.0,0.00036164,10]
[402074227,1768507879841,-1777.61,0.00036164,10]
[402074228,1768507879851,-500.0,0.00036164,10]
[402074229,1768507879863,-902.63,0.00036164,10]
[402074230,1768507879872,-500.0,0.00036164,10]
[402074231,1768507879882,-1329.01,0.00036164,10]
[402074232,1768507879893,-1124.73,0.00036164,10]
[402074233,1768507879910,-364.0805225,0.00036164,10]
[402074234,1768507879920,-500.0,0.00036164,10]
[402074235,1768507879929,-500.0,0.00036164,10]
[402074236,1768507879939,-500.0,0.00036164,10]
[402074237,1768507879950,-1790.52,0.00036164,10]
[402074238,1768507879960,-500.0,0.00036164,10]
[402074239,1768507879970,-500.0,0.00036164,10]
[402074240,1768507879980,-506.22,0.00036164,10]
[402074241,1768507879989,-533.06169334,0.00036164,10]
[402074242,1768507879999,-2734.86,0.00036164,10]
[402074243,1768507880009,-500.0,0.00036164,10]
[402074244,1768507880019,-2078.68,0.00036164,10]
[402074245,1768507880028,-682.0,0.00036164,10]
[402074246,1768507880038,-573.95,0.00036164,10]
[402074247,1768507880047,-1177.72,0.00036164,10]
[402074248,1768507880057,-799.97,0.00036164,10]
[402074249,1768507880066,-500.0,0.00036164,10]
[402074250,1768507880075,-561.76871386,0.00036164,10]
[402074251,1768507880084,-1030.52,0.00036164,10]
[402074252,1768507880097,-548.7,0.00036164,10]
[402074253,1768507880107,-500.0,0.00036164,10]
[402074254,1768507880116,-500.0,0.00036164,10]
[402074255,1768507880126,-500.0,0.00036164,10]
[402074256,1768507880136,-941.71,0.00036164,10]
[402074257,1768507880146,-1004.46,0.00036164,10]
[402074258,1768507880157,-500.0,0.00036164,10]
[402074259,1768507880177,-500.0,0.00036164,10]
[402074260,1768507880187,-500.0,0.00036164,10]
[402074261,1768507880197,-500.0,0.00036164,10]
[402074262,1768507880209,-500.0,0.00036164,10]
[402074263,1768507880219,-1000.0,0.00036164,120]
[402074264,1768507880229,-1000.0,0.00036164,120]
[402074265,1768507880239,-4525.94,0.00036164,10]
[402074266,1768507880250,-791.78,0.00036164,10]
[402074267,1768507880260,-500.0,0.00036164,10]
[402074268,1768507880270,-500.0,0.00036164,10]
[402074269,1768507880280,-500.0,0.00036164,10]
[402074270,1768507880290,-572.1,0.00036164,10]
[402074271,1768507880299,-713.0,0.00036164,10]
[402074272,1768507880309,-545.05,0.00036164,10]
[402074273,1768507880320,-640.85,0.00036164,10]
[402074274,1768507880330,-500.0,0.00036164,10]
[402074275,1768507880341,-751.0,0.00036164,10]
[402074276,1768507880351,-500.0,0.00036164,10]
[402074277,1768507880362,-1093.44,0.00036164,10]
[402074278,1768507880371,-617.24,0.00036164,10]
[402074279,1768507880381,-507.09,0.00036164,10]
[402074280,1768507880390,-802.41,0.00036164,10]
[402074281,1768507880399,-1894.16,0.00036164,10]
[402074282,1768507880410,-500.0,0.00036164,10]
[402074283,1768507880419,-816.36,0.00036164,10]
[402074284,1768507880429,-500.0,0.00036164,10]
[402074285,1768507880439,-1118.71,0.00036164,10]
[402074286,1768507880449,-500.0,0.00036164,10]
[402074287,1768507880459,-500.0,0.00036164,10]
[402074288,1768507880468,-599.19,0.00036164,10]
[402074289,1768507880478,-1549.06,0.00036164,10]
[402074290,1768507880489,-500.0,0.00036164,10]
[402074291,1768507880498,-877.07,0.00036164,10]
[402074292,1768507880508,-500.0,0.00036164,10]
[402074293,1768507880519,-500.0,0.00036164,10]
[402074294,1768507880530,-500.0,0.00036164,10]
[402074295,1768507880540,-1992.55,0.00036164,10]
[402074296,1768507880550,-500.0,0.00036164,10]
[402074297,1768507880560,-1695.2,0.00036164,10]
[402074298,1768507880570,-500.0,0.00036164,10]
[402074299,1768507880584,-1213.64,0.00036164,10]
[402074300,1768507880595,-500.0,0.00036164,10]
[402074301,1768507880605,-607.94,0.00036164,10]
[402074302,1768507880615,-739.72,0.00036164,10]
[402074303,1768507880624,-500.0,0.00036164,10]
[402074304,1768507880633,-500.0,0.00036164,10]
[402074305,1768507880643,-500.0,0.00036164,10]
[402074306,1768507880658,-559.05,0.00036164,10]
[402074307,1768507880674,-500.0,0.00036164,10]
[402074308,1768507880684,-500.0,0.00036164,10]
[402074309,1768507880693,-500.0,0.00036164,10]
[402074310,1768507880703,-500.0,0.00036164,10]
[402074311,1768507880713,-838.02,0.00036164,10]
[402074312,1768507880722,-1886.05,0.00036164,10]
[402074313,1768507880732,-666.16,0.00036164,10]
[402074314,1768507880742,-500.0,0.00036164,10]
[402074315,1768507880751,-3808.11,0.00036164,10]
[402074316,1768507880762,-1403.97,0.00036164,10]
[402074317,1768507880772,-500.0,0.00036164,10]
[402074318,1768507880782,-500.0,0.00036164,10]
[402074319,1768507880910,-555.6,0.00036164,10]
[402074320,1768507880920,-500.0,0.00036164,10]
[402074321,1768507880930,-500.0,0.00036164,10]
[402074322,1768507880940,-500.0,0.00036164,10]
[402074323,1768507880949,-500.0,0.00036164,10]
[402074324,1768507880959,-500.0,0.00036164,10]
[402074325,1768507880969,-500.0,0.00036164,10]
[402074326,1768507880979,-500.0,0.00036164,10]
[402074327,1768507880988,-1279.89,0.00036164,10]
[402074328,1768507880998,-504.70755106,0.00036164,10]
[402074329,1768507881007,-500.0,0.00036164,10]
[402074330,1768507881016,-524.85704419,0.00036164,10]
[402074331,1768507881026,-1469.69,0.00036164,10]
[402074332,1768507881035,-500.0,0.00036164,10]
[402074333,1768507881044,-2084.21,0.00036164,10]
[402074334,1768507881053,-500.0,0.00036164,10]
[402074335,1768507881062,-500.0,0.00036164,10]
[402074336,1768507881071,-500.0,0.00036164,10]
[402074337,1768507881079,-500.0,0.00036164,10]
[402074338,1768507881090,-818.89,0.00036164,10]
[402074339,1768507881101,-916.39,0.00036164,10]
[402074340,1768507881110,-500.0,0.00036164,10]
[402074341,1768507881119,-500.0,0.00036164,10]
[402074342,1768507881129,-500.0,0.00036164,10]
[402074343,1768507881138,-500.0,0.00036164,10]
[402074344,1768507881147,-1930.51,0.00036164,10]
[402074345,1768507881156,-653.49,0.00036164,10]
[402074346,1768507881166,-819.44,0.00036164,10]
[402074347,1768507881175,-500.0,0.00036164,10]
[402074348,1768507881184,-500.0,0.00036164,10]
[402074349,1768507881194,-1459.76,0.00036164,10]
[402074350,1768507881203,-576.45,0.00036164,10]
[402074351,1768507881212,-500.0,0.00036164,10]
[402074352,1768507881221,-500.0,0.00036164,10]
[402074353,1768507881231,-1210.08,0.00036164,10]
[402074354,1768507881242,-1095.45,0.00036164,10]
[402074355,1768507881252,-1557.88,0.00036164,10]
[402074356,1768507881262,-501.21,0.00036164,10]
[402074357,1768507881271,-1004.14,0.00036164,10]
[402074358,1768507881280,-927.77,0.00036164,10]
[402074359,1768507881290,-500.0,0.00036164,10]
[402074360,1768507881299,-9753.38,0.00036164,10]
[402074361,1768507881308,-685.54,0.00036164,10]
[402074362,1768507881317,-500.0,0.00036164,10]
[402074363,1768507881326,-563.54,0.00036164,10]
[402074364,1768507881335,-1890.94,0.00036164,10]
[402074365,1768507881344,-500.0,0.00036164,10]
[402074366,1768507881353,-2004.88,0.00036164,10]
[402074367,1768507881362,-500.0,0.00036164,10]
[402074368,1768507881372,-500.0,0.00036164,10]
[402074369,1768507881381,-1772.09,0.00036164,10]
[402074370,1768507881390,-514.88,0.00036164,10]
[402074371,1768507881399,-500.0,0.00036164,10]
[402074372,1768507881407,-2822.21,0.00036164,10]
[402074373,1768507881417,-500.0,0.00036164,10]
[402074374,1768507881426,-1109.41,0.00036164,10]
[402074375,1768507881435,-653.97,0.00036164,10]
[402074376,1768507881444,-500.0,0.00036164,10]
[402074377,1768507881453,-502.93,0.00036164,10]
[402074378,1768507881463,-1541.52,0.00036164,10]
[402074379,1768507881472,-1000.0,0.00036164,120]
[402074380,1768507881481,-500.0,0.00036164,10]
[402074381,1768507881490,-991.25,0.00036164,10]
[402074382,1768507881500,-371.925329,0.00036164,7]
[402074383,1768507881509,-500.0,0.00036164,10]
[402074384,1768507881518,-500.0,0.00036164,10]
[402074385,1768507881527,-500.0,0.00036164,10]
[402074386,1768507881537,-371.925329,0.00036164,7]
[402074387,1768507881546,-500.0,0.00036164,10]
[402074388,1768507881555,-500.0,0.00036164,10]
[402074389,1768507881564,-371.925329,0.00036164,7]
[402074390,1768507881574,-1883.29,0.00036164,10]
[402074391,1768507881583,-607.44,0.00036164,10]
[402074392,1768507881592,-371.925329,0.00036164,7]
[402074393,1768507881601,-599.29,0.00036164,10]
[402074394,1768507881610,-500.0,0.00036164,10]
[402074395,1768507881619,-500.0,0.00036164,10]
[402074396,1768507881628,-902.34,0.00036164,10]
[402074397,1768507881637,-822.09,0.00036164,10]
[402074398,1768507881646,-1306.75,0.00036164,10]
[402074399,1768507881655,-500.0,0.00036164,10]
[402074400,1768507881664,-500.0,0.00036164,10]
[402074401,1768507881673,-1363.24,0.00036164,10]
[402074402,1768507881682,-1493.74,0.00036164,10]
[402074403,1768507881691,-544.46,0.00036164,10]
[402074404,1768507881700,-1554.74,0.00036164,10]
[402074405,1768507881710,-500.0,0.00036164,10]
[402074406,1768507881719,-500.0,0.00036164,10]
[402074407,1768507881728,-907.43,0.00036164,10]
[402074408,1768507881738,-500.0,0.00036164,10]
[402074409,1768507881747,-500.0,0.00036164,10]
[402074410,1768507881756,-151.0,0.00036164,31]
[402074411,1768507881765,-741.09,0.00036164,10]
[402074412,1768507881774,-500.0,0.00036164,10]
[402074413,1768507881783,-764.0,0.00036164,10]
[402074414,1768507881792,-1815.78,0.00036164,10]
[402074415,1768507881802,-500.0,0.00036164,10]
[402074416,1768507881811,-3188.19,0.00036164,10]
[402074417,1768507881820,-2497.75,0.00036164,10]
[402074418,1768507881830,-1579.75,0.00036164,10]
[402074419,1768507881839,-1111.93,0.00036164,10]
[402074420,1768507881848,-500.0,0.00036164,10]
[402074421,1768507881858,-1140.38,0.00036164,10]
[402074422,1768507881868,-625.5,0.00036164,10]
[402074423,1768507881878,-799.43,0.00036164,10]
[402074424,1768507881887,-500.0,0.00036164,10]
[402074425,1768507881896,-500.0,0.00036164,10]
[402074426,1768507881906,-839.5,0.00036164,10]
[402074427,1768507881915,-500.0,0.00036164,10]
[402074428,1768507881924,-368.30683467,0.00036164,10]
[402074429,1768507881933,-500.0,0.00036164,10]
[402074430,1768507881942,-1003.07,0.00036164,10]
[402074431,1768507881952,-582.51,0.00036164,10]
[402074432,1768507881961,-500.0,0.00036164,10]
[402074433,1768507881970,-500.0,0.00036164,10]
[402074434,1768507881980,-121.22844844,0.00036164,10]
[402074435,1768507882508,-378.77155156,0.00036164,10]
[402074436,1768507882517,-59.22844844,0.00036164,10]
[402074437,1768507882951,-312.5,0.00032251,2]
[402074438,1768507882963,-2125.5,0.00032251,2]
[402074439,1768507882974,-2438.0,0.00035251,2]
[402074440,1768507882985,-500.0,0.00035616,10]
[402074441,1768507882995,-1136.92,0.00035616,10]
[402074442,1768507883005,-500.0,0.0003589,10]
[402074443,1768507883015,-1136.92,0.0003589,10]
[402074444,1768507883025,-440.77155156,0.00036164,10]
[402074445,1768507883035,-500.0,0.00036164,10]
[402074446,1768507883045,-1947.55,0.00036164,10]
[402074447,1768507883055,-500.0,0.00036164,10]
[402074448,1768507883065,-500.0,0.00036164,10]
[402074449,1768507883075,-500.0,0.00036164,10]
[402074450,1768507883085,-500.0,0.00036164,10]
[402074451,1768507883098,-1220.86,0.00036164,10]
[402074452,1768507883108,-514.03709463,0.00036164,10]
[402074453,1768507883118,-500.0,0.00036164,10]
[402074454,1768507883128,-1212.65,0.00036164,10]
[402074455,1768507883138,-500.0,0.00036164,10]
[402074456,1768507883148,-966.88,0.00036164,10]
[402074457,1768507883158,-500.0,0.00036164,10]
[402074458,1768507883170,-500.0,0.00036164,10]
[402074459,1768507883180,-500.0,0.00036164,10]
[402074460,1768507883189,-500.0,0.00036164,10]
[402074461,1768507883199,-500.0,0.00036164,10]
[402074462,1768507883209,-500.0,0.00036164,10]
[402074463,1768507883220,-2666.19,0.00036164,10]
[402074464,1768507883230,-246.84868551,0.00036164,10]
[402074465,1768507883240,-500.0,0.00036164,10]
[402074466,1768507883250,-2248.41,0.00036164,10]
[402074467,1768507883260,-1387.09,0.00036164,10]
[402074468,1768507883271,-995.01,0.00036164,10]
[402074469,1768507883281,-3043.23,0.00036164,10]
[402074470,1768507883291,-3392.42,0.00036164,10]
[402074471,1768507883302,-500.0,0.00036164,10]
[402074472,1768507883311,-601.26323396,0.00036164,10]
[402074473,1768507883321,-240.73674893,0.00036164,10]
[402074474,1768507883331,-500.0,0.00036164,10]
[402074475,1768507883340,-500.0,0.00036164,10]
[402074476,1768507883350,-599.18,0.00036164,10]
[402074477,1768507883360,-1018.31,0.00036164,10]
[402074478,1768507883369,-500.0,0.00036164,10]
[402074479,1768507883379,-500.0,0.00036164,10]
[402074480,1768507883389,-500.0,0.00036164,10]
[402074481,1768507883400,-512.75,0.00036164,10]
[402074482,1768507883410,-500.0,0.00036164,10]
[402074483,1768507883420,-510.64199635,0.00036164,10]
[402074484,1768507883431,-500.0,0.00036164,10]
[402074485,1768507883441,-973.66,0.00036164,10]
[402074486,1768507883450,-756.96,0.00036164,10]
[402074487,1768507883460,-1198.69,0.00036164,10]
[402074488,1768507883470,-500.0,0.00036164,10]
[402074489,1768507883479,-2299.0,0.00036164,10]
[402074490,1768507883489,-884.19,0.00036164,10]
[402074491,1768507883498,-1448.28,0.00036164,10]
[402074492,1768507883508,-630.74,0.00036164,10]
[402074493,1768507883518,-500.0,0.00036164,10]
[402074494,1768507883528,-1516.89,0.00036164,10]
[402074495,1768507883537,-1129.07,0.00036164,10]
[402074496,1768507883547,-500.0,0.00036164,10]
[402074497,1768507883557,-889.4,0.00036164,10]
[402074498,1768507883566,-500.0,0.00036164,10]
[402074499,1768507883576,-500.0,0.00036164,10]
[402074500,1768507883586,-929.92,0.00036164,10]